bitfinex/quotes_ETHUSD_20240717
["timestamp","ask_amount","ask_price","bid_price","bid_amount"]
[1721175712642,2.88925,3461.1,3460.3,2.88991]
[1721175712864,2.88925,3461.1,3460.6,0.05990812]
[1721175713002,2.88925,3461.1,3460.3,2.88985]
[1721175713205,2.88915,3461.3,3460.7,0.05990812]
[1721175713541,2.88917,3461.2,3460.3,3.46344087]
[1721175713715,2.88917,3461.2,3460.8,0.06005245]
[1721175713917,2.88917,3461.2,3460.3,3.46344087]
[1721175714345,2.88917,3461.2,3460.4,0.06005245]
[1721175716057,2.8891,3461.3,3460.4,3.83045678]
[1721175716257,2.88917,3461.2,3460.4,3.83045678]
[1721175716560,2.88917,3461.2,3460.4,0.06005245]
[1721175717972,5.77842,3461.2,3460.4,0.06005245]
[1721175718624,2.88917,3461.2,3460.4,2.94987245]
[1721175719858,5.77842,3461.2,3460.4,0.06005245]
[1721175720260,2.88925,3461.1,3460.3,2.88991]
[1721175720559,2.88917,3461.2,3460.4,2.88983]
[1721175720949,2.88917,3461.2,3460.5,0.06005245]
[1721175722268,2.3631,3461.5,3460.5,0.06005245]
[1721175722472,2.88944,3460.9,3460.5,0.06005245]
[1721175722675,2.88944,3460.9,3460.1,5.28304]
[1721175722847,3.97385871,3461.4,3460.1,5.28304]
[1721175722848,2.88934,3461.0,3460.6,0.06005048]
[1721175723183,2.88934,3461.0,3460.7,0.06005048]
[1721175723359,3.97385871,3461.4,3460.7,0.06005048]
[1721175723360,2.8895,3460.8,3460.7,0.06005048]
[1721175723567,8.063,3460.8,3460.7,0.06005048]
[1721175723881,2.88976,3460.5,3459.7,5.31159]
[1721175724088,2.88976,3460.5,3459.7,6.131804]
[1721175724263,2.88976,3460.5,3459.8,0.05808209]
[1721175727486,5.77959,3460.5,3459.8,0.05808209]
[1721175727793,2.88976,3460.5,3459.8,0.05808209]
[1721175729096,2.88962,3460.7,3459.8,2.94840209]
[1721175729265,2.88962,3460.7,3459.9,0.66590261]
[1721175729990,2.88962,3460.7,3460.0,0.05808209]
[1721175730183,2.284,3460.8,3460.0,0.05808209]
[1721175730684,5.17356,3460.8,3460.0,0.05808209]
[1721175730885,5.32167,3461.1,3460.0,0.05808209]
[1721175731085,2.4324,3461.5,3460.7,2.88956]
[1721175731405,2.88901,3461.4,3460.5,2.8897]
[1721175731583,2.4324,3461.5,3460.8,0.05808209]
[1721175731954,3.0,3461.7,3461.0,2.88927]
[1721175732195,5.4205,3461.9,3461.0,2.88927]
[1721175732359,8.30909,3461.9,3461.1,0.824334]
[1721175732557,8.30909,3461.9,3461.0,2.88927]
[1721175737110,1.51260524,3462.3,3460.8,2.4646]
[1721175737296,2.4862,3462.5,3460.5,4.744]
[1721175737297,2.4862,3462.5,3461.5,2.88887]
[1721175737610,2.88826,3462.3,3461.5,2.88887]
[1721175737825,2.88826,3462.3,3461.6,0.05801596]
[1721175738266,2.88826,3462.3,3461.5,2.88891]
[1721175738897,2.88826,3462.3,3461.6,0.05801596]
[1721175739899,2.88793,3462.7,3461.6,0.05801596]
[1721175740206,2.88793,3462.7,3461.8,2.88866]
[1721175740560,2.88793,3462.7,3461.9,0.05792457]
[1721175740671,5.77593,3462.7,3461.9,0.05792457]
[1721175740866,2.88793,3462.7,3461.9,0.05792457]
[1721175741071,2.8881,3462.5,3461.9,0.05792457]
[1721175741369,2.8881,3462.5,3462.0,0.05792457]
[1721175741565,2.8881,3462.5,3461.6,2.88881]
[1721175741769,2.8881,3462.5,3461.7,2.94667457]
[1721175742503,5.77626,3462.5,3461.7,0.05792457]
[1721175742905,2.8881,3462.5,3461.6,2.88881]
[1721175743367,2.8881,3462.5,3461.7,0.05792457]
[1721175743774,2.8881,3462.5,3461.7,2.94665457]
[1721175745039,2.8881,3462.5,3461.7,0.05792457]
[1721175745197,5.77626,3462.5,3461.7,0.05792457]
[1721175745401,2.8881,3462.5,3461.6,2.88882]
[1721175745597,2.8881,3462.5,3461.7,0.05792457]
[1721175747529,2.88819,3462.4,3461.7,0.05792457]
[1721175747883,2.88827,3462.3,3461.7,0.05792457]
[1721175748387,5.32722,3462.1,3461.8,0.05792457]
[1721175748593,5.32722,3462.1,3461.3,2.88908]
[1721175748795,5.32722,3462.1,3461.4,0.0578176]
[1721175748993,2.4388,3462.1,3461.4,0.0578176]
[1721175749306,2.4388,3462.1,3460.8,10.28949]
[1721175749307,2.88872,3461.8,3460.8,10.28949]
[1721175749503,2.88872,3461.8,3461.5,0.05782538]
[1721175749708,2.88872,3461.8,3461.0,2.88932]
[1721175750221,2.88872,3461.8,3461.1,0.05589456]
[1721175750418,2.88884,3461.6,3461.1,0.05589456]
[1721175750626,5.77775,3461.6,3460.7,5.21442]
[1721175750808,5.77775,3461.6,3461.2,0.05593734]
[1721175751009,5.35671,3461.8,3460.8,2.88947]
[1721175751332,2.88875,3461.7,3460.9,0.05407418]
[1721175751489,2.88883,3461.6,3460.9,0.05407418]
[1721175752037,2.459,3462.2,3461.3,2.88906]
[1721175752038,2.8884,3462.2,3461.3,2.88906]
[1721175752352,2.8884,3462.2,3461.3,0.521396]
[1721175752504,2.88827,3462.3,3461.5,2.88889]
[1721175753209,2.88827,3462.3,3461.6,0.05409363]
[1721175755741,2.468,3462.4,3461.6,0.05409363]
[1721175755951,2.468,3462.4,3461.7,3.47188136]
[1721175756120,5.36471,3463.0,3462.0,2.88843]
[1721175756441,2.88753,3463.2,3462.3,2.88821]
[1721175756804,2.88753,3463.2,3462.4,2.88815]
[1721175757004,2.88753,3463.2,3462.5,0.05402557]
[1721175757248,2.88759,3463.1,3462.3,2.88823]
[1721175757401,2.88759,3463.1,3462.6,0.05400087]
[1721175757605,2.88753,3463.2,3462.4,2.88816]
[1721175757820,2.88753,3463.2,3462.5,0.05400087]
[1721175758037,2.88753,3463.2,3462.3,2.88823]
[1721175758336,2.88753,3463.2,3462.6,0.05400087]
[1721175758540,2.88753,3463.2,3462.3,2.88823]
[1721175758714,2.88753,3463.2,3462.7,0.05400087]
[1721175758915,2.88753,3463.2,3462.3,2.88823]
[1721175759119,2.88753,3463.2,3462.8,0.05400087]
[1721175759336,2.88753,3463.2,3462.3,2.88823]
[1721175759541,2.88753,3463.2,3462.9,0.05400087]
[1721175759865,2.88753,3463.2,3462.4,2.88816]
[1721175760026,2.88753,3463.2,3462.5,0.288816]
[1721175760229,2.88753,3463.2,3462.6,0.05400087]
[1721175761648,2.88753,3463.2,3462.3,2.88825]
[1721175761964,2.88753,3463.2,3462.7,0.05400087]
[1721175762127,3.0,3463.6,3462.8,2.88783]
[1721175762335,8.19095,3463.7,3462.9,0.288783]
[1721175762553,3.0,3463.6,3462.9,0.288783]
[1721175762753,3.0,3463.6,3463.0,0.05384342]
[1721175762962,5.88718,3463.6,3462.9,0.288783]
[1721175763273,5.88718,3463.6,3462.8,2.88783]
[1721175763443,5.88718,3463.6,3463.0,0.05384342]
[1721175763646,2.88687,3464.0,3463.0,2.51925138]
[1721175763851,2.88692,3463.9,3463.1,2.94141342]
[1721175764161,2.88692,3463.9,3463.1,3.77048476]
[1721175767172,2.88687,3464.0,3463.1,0.88291476]
[1721175767173,2.88701,3463.8,3463.1,0.88291476]
[1721175767330,2.88701,3463.8,3463.1,0.05384342]
[1721175767726,2.88701,3463.8,3462.9,2.88775]
[1721175767926,2.88701,3463.8,3463.2,0.05384342]
[1721175768149,2.88717,3463.6,3462.7,2.4616]
[1721175768351,2.88717,3463.6,3463.3,0.05384342]
[1721175768635,2.88717,3463.6,3463.4,0.05384342]
[1721175768864,2.88725,3463.5,3463.4,0.05384342]
[1721175769075,2.88725,3463.5,3462.7,2.4616]
[1721175769242,5.29565,3463.5,3462.7,2.4616]
[1721175769445,2.88734,3463.4,3462.8,0.05358689]
[1721175769682,2.88757,3463.2,3462.8,0.05358689]
[1721175770175,2.88757,3463.2,3462.3,12.74977]
[1721175770332,2.88757,3463.2,3462.9,0.05348002]
[1721175770536,2.88734,3463.4,3462.4,2.88815]
[1721175770733,2.88744,3463.3,3463.0,0.05348002]
[1721175771031,2.88734,3463.4,3463.1,0.05348002]
[1721175771237,2.88734,3463.4,3462.5,1.563808]
[1721175771570,2.88742,3463.3,3463.2,0.05348002]
[1721175771773,2.8875,3463.2,3462.5,1.563808]
[1721175771978,2.88728,3463.5,3462.6,4.3192858]
[1721175772176,2.88728,3463.5,3462.6,4.37276582]
[1721175772536,2.88728,3463.5,3462.7,2.88785]
[1721175773139,2.88728,3463.5,3462.8,0.05348002]
[1721175773337,2.4084,3463.9,3462.8,0.05348002]
[1721175773538,2.88718,3463.6,3462.8,0.14848358]
[1721175773838,2.8873,3463.5,3462.9,0.05348002]
[1721175774076,2.4084,3463.9,3462.9,0.05348002]
[1721175774237,5.3458,3464.1,3462.9,0.05348002]
[1721175774238,2.88766,3463.0,3462.9,0.05348002]
[1721175774449,2.88766,3463.0,3462.3,9.701]
[1721175774450,2.312,3463.5,3462.3,2.301]
[1721175774704,2.88755,3463.2,3462.9,0.05350916]
[1721175774862,2.88755,3463.2,3462.4,2.88816]
[1721175775048,2.88755,3463.2,3463.0,0.05350916]
[1721175775251,2.88755,3463.2,3462.4,2.88816]
[1721175775451,5.77513,3463.2,3463.1,0.05350916]
[1721175775688,5.77513,3463.2,3462.3,5.18924]
[1721175775903,2.88759,3463.1,3462.3,5.18924]
[1721175776799,2.88759,3463.1,3462.3,2.301]
[1721175776961,2.88759,3463.1,3462.3,5.18925]
[1721175777168,2.88759,3463.1,3462.4,0.807764]
[1721175778755,2.88736,3463.4,3462.4,3.695924]
[1721175778756,2.88751,3463.2,3462.4,3.695924]
[1721175779181,2.88736,3463.4,3462.6,2.88796]
[1721175779491,2.88736,3463.4,3462.7,2.88791]
[1721175779694,2.88736,3463.4,3462.7,2.94152601]
[1721175779858,2.88736,3463.4,3462.7,3.60526801]
[1721175780766,2.88716,3463.6,3462.7,3.60526801]
[1721175781309,2.88726,3463.5,3462.7,3.60526801]
[1721175781604,2.321,3463.7,3462.7,3.60526801]
[1721175781758,2.88719,3463.6,3462.7,3.60520801]
[1721175781955,2.88726,3463.5,3462.8,0.6493258]
[1721175782158,2.88726,3463.5,3462.8,3.5371558]
[1721175782352,2.321,3463.7,3462.8,3.5371558]
[1721175782353,5.20815,3463.7,3462.8,3.5371558]
[1721175782592,2.88717,3463.6,3462.9,0.05361601]
[1721175783602,2.88725,3463.5,3462.9,0.05361601]
[1721175783983,2.88725,3463.5,3462.6,2.888]
[1721175784159,2.88725,3463.5,3463.0,0.05361601]
[1721175784495,2.88725,3463.5,3463.1,0.05361601]
[1721175784862,2.88725,3463.5,3462.7,2.88787]
[1721175785059,2.88725,3463.5,3463.2,0.05361601]
[1721175785263,2.88725,3463.5,3462.7,2.88787]
[1721175785464,2.88725,3463.5,3463.3,0.05361601]
[1721175785699,2.88725,3463.5,3462.7,2.88787]
[1721175786117,2.88725,3463.5,3462.8,0.05361601]
[1721175787495,2.321,3463.7,3462.8,2.94144601]
[1721175787702,2.321,3463.7,3462.9,2.2558]
[1721175788204,2.88717,3463.6,3462.9,2.2558]
[1721175788383,2.88726,3463.5,3463.0,0.05361601]
[1721175788589,2.88717,3463.6,3463.0,0.05361601]
[1721175788905,5.77441,3463.6,3463.0,0.05361601]
[1721175789110,2.88727,3463.5,3463.0,0.05361601]
[1721175789466,5.20814,3463.7,3463.0,0.05361601]
[1721175789761,2.88718,3463.6,3463.0,0.05361601]
[1721175790475,2.88704,3463.8,3463.0,0.05361601]
[1721175790723,5.77411,3463.8,3463.0,0.05361601]
[1721175791322,2.88693,3463.9,3463.1,2.88756]
[1721175791626,5.77391,3463.9,3463.2,0.05355771]
[1721175792227,2.88693,3463.9,3463.2,0.05355771]
[1721175793731,2.88683,3464.0,3463.3,2.75342998]
[1721175793917,2.88683,3464.0,3463.3,2.2704]
[1721175794243,2.88683,3464.0,3463.4,0.05189105]
[1721175796312,3.90892,3463.9,3463.4,0.05189105]
[1721175796510,1.022,3463.7,3463.4,0.05189105]
[1721175796935,1.022,3463.7,3463.2,2.88748]
[1721175797150,1.022,3463.7,3463.5,0.05189105]
[1721175797355,1.022,3463.7,3463.2,2.88748]
[1721175797564,1.022,3463.7,3463.6,0.05189105]
[1721175798064,1.022,3463.7,3463.2,2.88748]
[1721175798274,1.022,3463.7,3463.6,0.05189105]
[1721175798554,1.022,3463.7,3463.2,3.710331]
[1721175798555,1.022,3463.7,3463.2,2.88748]
[1721175799066,1.022,3463.7,3463.3,0.05189105]
[1721175799419,2.4514,3464.3,3463.0,2.4535]
[1721175799621,1.022,3464.3,3463.6,5.23905]
[1721175799917,1.022,3464.3,3463.7,0.05173175]
[1721175800667,1.022,3464.3,3463.8,2.88699]
[1721175801241,1.022,3464.3,3463.9,0.05173175]
[1721175801978,1.022,3464.1,3463.9,0.05173175]
[1721175802340,1.022,3464.1,3463.4,2.88729]
[1721175802563,1.022,3464.1,3464.0,0.05157638]
[1721175803041,1.022,3464.1,3463.5,2.88724]
[1721175803042,1.022,3464.1,3463.5,2.88717]
[1721175803256,1.022,3464.1,3463.6,0.05151812]
[1721175803456,1.022,3464.1,3463.5,2.88717]
[1721175803663,1.022,3464.1,3463.6,0.05151812]
[1721175804080,2.4462,3464.2,3463.6,0.05151812]
[1721175804081,2.88646,3464.5,3463.6,2.88715]
[1721175804273,2.88646,3464.5,3463.7,0.05151812]
[1721175804591,2.88646,3464.5,3463.6,3.464582]
[1721175804798,2.88646,3464.5,3463.8,0.05152006]
[1721175805090,2.88618,3464.8,3464.0,2.8868]
[1721175805297,2.88618,3464.8,3463.9,2.4185]
[1721175805298,3.0,3464.7,3463.9,2.4185]
[1721175805618,1.51302195,3464.9,3464.1,0.05152006]
[1721175805792,0.005,3466.3,3464.2,2.3086]
[1721175805793,2.4276,3465.6,3464.2,2.3086]
[1721175805978,2.89042,3465.7,3464.6,2.88631]
[1721175806184,2.89045,3465.7,3464.3,0.53526]
[1721175806476,2.89045,3465.7,3464.8,2.88616]
[1721175806702,2.89045,3465.7,3464.9,0.577247]
[1721175807111,2.89045,3465.7,3465.0,0.05150064]
[1721175810116,2.88573,3465.4,3465.0,0.05150064]
[1721175810567,2.88573,3465.4,3464.4,5.22456]
[1721175810888,2.88573,3465.4,3464.5,2.88639]
[1721175811096,2.88551,3465.6,3464.8,2.88615]
[1721175811814,2.88551,3465.6,3464.9,0.05150064]
[1721175812314,2.88561,3465.5,3464.9,0.05150064]
[1721175812816,2.88561,3465.5,3464.6,3.750941]
[1721175812972,2.83561,3465.5,3465.0,0.05150064]
[1721175813169,2.83561,3465.5,3464.6,3.750941]
[1721175813363,2.83561,3465.5,3465.1,0.05150064]
[1721175813568,2.83561,3465.5,3464.7,0.8975521]
[1721175813796,2.83561,3465.5,3465.2,0.05150064]
[1721175813977,2.83561,3465.5,3464.7,0.8975521]
[1721175814169,2.83561,3465.5,3465.3,0.05150064]
[1721175814365,2.83561,3465.5,3464.6,2.88632]
[1721175814611,5.24999,3465.4,3464.5,2.88641]
[1721175814785,5.24999,3465.4,3464.7,0.05150064]
[1721175814985,5.24999,3465.4,3464.5,2.88641]
[1721175815470,2.3643,3465.4,3464.6,0.05150064]
[1721175815676,2.88619,3464.8,3464.6,0.05150064]
[1721175815882,5.25049,3464.8,3463.9,2.88688]
[1721175816124,5.25049,3464.8,3464.7,0.05114733]
[1721175816330,5.25049,3464.8,3463.8,2.88694]
[1721175816538,2.88639,3464.6,3463.7,2.2794]
[1721175816686,2.88639,3464.6,3463.9,0.04599726]
[1721175816882,2.88639,3464.6,3463.8,3.692353]
[1721175817082,2.88639,3464.6,3464.0,0.04599726]
[1721175817283,2.88639,3464.6,3463.8,3.692353]
[1721175817496,2.88639,3464.6,3464.1,0.04599726]
[1721175817704,2.88639,3464.6,3463.9,0.5971753]
[1721175817908,2.88639,3464.6,3464.2,0.04599726]
[1721175818084,2.88639,3464.6,3463.9,0.5971753]
[1721175818281,5.25049,3464.8,3463.9,0.5971753]
[1721175818282,2.3643,3464.8,3464.3,0.04599726]
[1721175818488,2.88596,3465.1,3464.0,2.88683]
[1721175818706,2.88596,3465.1,3464.4,0.04599726]
[1721175818931,2.88596,3465.1,3464.3,2.88657]
[1721175819127,2.88596,3465.1,3464.5,0.04599726]
[1721175819295,2.88596,3465.1,3464.1,3.52378853]
[1721175819628,2.88601,3465.0,3464.6,0.04599726]
[1721175819987,2.88601,3465.0,3464.2,3.58742538]
[1721175820182,2.88601,3465.0,3464.7,0.04599726]
[1721175820421,2.88601,3465.0,3464.2,3.58742538]
[1721175820628,2.88601,3465.0,3464.8,0.04599726]
[1721175820848,2.88601,3465.0,3464.9,0.04599726]
[1721175821054,2.88601,3465.0,3464.2,3.58742538]
[1721175821259,2.88601,3465.0,3464.3,0.6934188]
[1721175821408,2.88601,3465.0,3464.3,0.04599726]
[1721175821607,2.88601,3465.0,3464.2,2.88663]
[1721175821932,2.88626,3464.7,3464.3,0.04599726]
[1721175822103,2.88626,3464.7,3463.9,0.5971753]
[1721175822310,2.88626,3464.7,3464.4,0.04599726]
[1721175822839,2.88626,3464.7,3464.5,0.04599726]
[1721175823241,2.88626,3464.7,3464.0,4.20317953]
[1721175823441,2.88626,3464.7,3464.6,0.04599726]
[1721175823646,2.88626,3464.7,3464.0,4.20317953]
[1721175823941,2.88626,3464.7,3464.1,0.48003548]
[1721175824244,2.88626,3464.7,3464.1,0.52603274]
[1721175824945,2.88634,3464.6,3464.1,0.52603274]
[1721175829135,2.3572,3464.5,3464.1,0.52603274]
[1721175829332,2.3572,3464.5,3464.1,0.04599726]
[1721175829546,2.88666,3464.2,3464.1,0.04599726]
[1721175829738,2.88675,3464.1,3463.3,12.7764]
[1721175830011,2.88675,3464.1,3463.3,5.3764]
[1721175830352,2.88675,3464.1,3463.4,0.0445921]
[1721175830652,2.88675,3464.1,3463.5,0.83084321]
[1721175831031,2.88675,3464.1,3463.3,5.3764]
[1721175831032,2.88684,3464.0,3463.3,2.489]
[1721175831477,2.88693,3463.9,3463.4,0.0445921]
[1721175831835,2.88701,3463.8,3463.4,0.0445921]
[1721175833041,2.88678,3464.1,3463.4,0.0445921]
[1721175833363,2.88692,3463.9,3463.4,0.0445921]
[1721175833573,2.88692,3463.9,3463.4,0.58670931]
[1721175835549,2.887,3463.8,3463.4,0.0445921]
[1721175836074,2.887,3463.8,3463.5,0.0445921]
[1721175836433,2.887,3463.8,3463.0,5.33766]
[1721175836434,2.887,3463.8,3463.0,2.45]
[1721175836634,2.88709,3463.7,3463.0,2.45]
[1721175836842,2.88709,3463.7,3463.1,0.0445921]
[1721175837233,2.88692,3463.9,3463.1,0.0445921]
[1721175837456,2.88704,3463.8,3463.1,0.0445921]
[1721175838165,2.88691,3464.0,3463.1,0.0445921]
[1721175838332,2.88678,3464.1,3463.1,2.9321521]
[1721175838534,2.88664,3464.3,3463.2,0.88036301]
[1721175838783,2.88664,3464.3,3463.3,2.9450792]
[1721175838963,2.88664,3464.3,3463.4,2.3837]
[1721175839272,2.88664,3464.3,3463.5,2.9319525]
[1721175839644,2.88644,3464.5,3463.5,2.9319525]
[1721175839864,8.37338,3464.7,3463.7,2.88708]
[1721175840030,2.88628,3464.7,3463.8,5.27064]
[1721175840237,2.88625,3464.7,3463.9,2.88685]
[1721175840434,2.88648,3464.5,3463.9,0.0447125]
[1721175840894,2.4871,3465.0,3463.9,2.9315725]
[1721175840895,2.88617,3464.8,3463.9,2.9315725]
[1721175841042,2.8861,3464.9,3464.0,0.53152725]
[1721175841246,2.4871,3465.0,3464.0,3.41833725]
[1721175841247,2.886,3465.0,3464.0,3.41833725]
[1721175841484,2.886,3465.0,3464.2,2.88665]
[1721175841689,2.8861,3464.9,3464.2,2.88665]
[1721175841878,2.8861,3464.9,3464.3,0.04477656]
[1721175842090,2.8861,3464.9,3464.4,0.53569266]
[1721175842594,2.8861,3464.9,3464.5,0.04477656]
[1721175843453,5.77194,3465.1,3464.5,0.04477656]
[1721175843682,2.88603,3465.0,3464.5,0.04477656]
[1721175843885,2.8861,3464.9,3464.5,0.04477656]
[1721175844084,2.88595,3465.1,3464.5,0.04477656]
[1721175844256,2.88595,3465.1,3464.2,2.88665]
[1721175844457,2.88595,3465.1,3464.3,3.75962873]
[1721175844759,2.88595,3465.1,3464.4,0.04471444]
[1721175846688,5.36729,3465.3,3464.4,0.04471444]
[1721175846903,2.88592,3465.1,3464.4,0.04471444]
[1721175847896,2.88579,3465.3,3464.4,0.10243802]
[1721175848095,2.88579,3465.3,3464.5,3.27259668]
[1721175848483,2.88579,3465.3,3464.6,0.04471444]
[1721175848679,5.77162,3465.3,3464.6,0.04471444]
[1721175849274,2.88579,3465.3,3464.6,0.04471444]
[1721175849475,5.77161,3465.3,3464.6,0.04471444]
[1721175849677,2.88555,3465.6,3464.7,5.52557111]
[1721175849996,2.88555,3465.6,3464.8,0.05771659]
[1721175850296,2.8856,3465.5,3464.8,0.0445397]
[1721175851615,2.89046,3465.7,3464.8,2.9306997]
[1721175851814,2.89046,3465.7,3464.9,0.55700308]
[1721175852123,2.88558,3465.5,3464.9,0.55700308]
[1721175852411,2.88568,3465.4,3465.0,0.0445397]
[1721175852805,5.77213,3465.0,3464.0,2.2591]
[1721175853009,2.88617,3464.8,3464.0,2.2591]
[1721175853813,2.88638,3464.6,3463.8,2.88698]
[1721175854323,2.88638,3464.6,3463.9,0.04153157]
[1721175854490,2.88638,3464.6,3463.9,0.86621773]
[1721175855713,2.2536,3464.7,3463.9,0.86621773]
[1721175856020,5.1399,3464.7,3463.9,0.86621773]
[1721175856713,2.452,3465.3,3463.9,0.86621773]
[1721175856714,2.4643,3465.1,3463.9,0.86621773]
[1721175856876,2.4643,3465.1,3463.9,0.04153157]
[1721175857070,2.4643,3465.1,3463.7,2.4313]
[1721175857312,2.88629,3464.7,3463.9,2.88687]
[1721175857481,2.88629,3464.7,3463.7,2.4313]
[1721175857482,5.35744,3464.6,3463.8,0.04159174]
[1721175857686,5.35744,3464.6,3463.7,2.88702]
[1721175857687,2.88642,3464.5,3463.7,2.88702]
[1721175857870,2.88642,3464.5,3463.9,0.04159174]
[1721175858075,2.88642,3464.5,3463.8,0.33027821]
[1721175858327,2.88658,3464.3,3463.4,2.8873]
[1721175858614,2.88658,3464.3,3463.9,0.04157621]
[1721175858813,2.88658,3464.3,3463.5,2.88725]
[1721175859025,2.88658,3464.3,3464.0,0.04157621]
[1721175859200,2.88658,3464.3,3463.5,2.88725]
[1721175859378,2.88658,3464.3,3464.1,0.04157621]
[1721175859579,2.88658,3464.3,3463.6,0.816426]
[1721175859786,2.88658,3464.3,3464.2,0.04157621]
[1721175859994,2.88658,3464.3,3463.6,0.816426]
[1721175859995,2.4711,3464.6,3463.6,0.816426]
[1721175860224,2.4711,3464.6,3463.3,2.3896]
[1721175860225,2.88611,3464.9,3464.2,0.04157621]
[1721175860521,2.88617,3464.8,3464.1,2.3865]
[1721175860721,3.0,3465.0,3464.1,2.3865]
[1721175860976,2.88584,3465.2,3464.4,2.88648]
[1721175861098,2.88593,3465.1,3464.5,0.288648]
[1721175861623,2.88593,3465.1,3464.6,0.04176257]
[1721175862324,2.8858,3465.3,3464.6,0.04176257]
[1721175862506,2.88583,3465.2,3464.6,0.04176257]
[1721175862707,2.88583,3465.2,3464.6,0.65209463]
[1721175863308,2.88568,3465.4,3464.6,0.65209463]
[1721175863503,2.88575,3465.3,3464.6,0.65209463]
[1721175863822,0.005,3465.7,3464.6,0.65209463]
[1721175863983,2.88584,3465.2,3464.6,0.04176257]
[1721175864429,2.88584,3465.2,3464.4,2.88649]
[1721175864754,2.88584,3465.2,3464.7,0.04163251]
[1721175864887,2.88584,3465.2,3464.3,2.88655]
[1721175865086,2.88584,3465.2,3464.1,5.27323]
[1721175865087,2.88584,3465.2,3464.5,0.04163251]
[1721175865289,2.88606,3465.0,3464.6,0.04163251]
[1721175865601,2.88609,3464.9,3464.6,0.04163251]
[1721175865784,2.88609,3464.9,3463.9,2.88684]
[1721175866022,2.88616,3464.8,3464.7,0.04163639]
[1721175866212,2.88616,3464.8,3463.7,12.60654]
[1721175866213,2.88634,3464.6,3463.7,12.60654]
[1721175866425,2.88634,3464.6,3463.7,8.09356]
[1721175866727,2.88634,3464.6,3463.5,2.88723]
[1721175866900,2.88656,3464.4,3463.5,2.88723]
[1721175867606,2.88656,3464.4,3463.6,2.88716]
[1721175867936,5.34253,3464.5,3463.7,3.464499]
[1721175868506,2.88584,3465.2,3464.1,2.88674]
[1721175868507,2.886,3465.0,3464.1,2.88674]
[1721175868693,2.88618,3464.8,3463.9,2.88684]
[1721175869003,2.88626,3464.7,3463.9,2.88684]
[1721175869193,2.88626,3464.7,3464.0,0.04032629]
[1721175869534,2.4291,3465.2,3464.1,0.52547663]
[1721175869535,2.88604,3465.0,3464.1,0.52547663]
[1721175869830,2.88624,3464.8,3464.1,0.52547663]
[1721175870030,2.88624,3464.8,3464.2,0.04032629]
[1721175870534,5.77248,3464.8,3464.2,0.04032629]
[1721175870691,2.88626,3464.7,3464.2,0.04032629]
[1721175870892,2.88626,3464.7,3463.8,2.88698]
[1721175871216,2.88626,3464.7,3463.9,3.5220249]
[1721175871422,2.88641,3464.6,3463.9,0.67541906]
[1721175871732,2.8863,3464.7,3463.9,0.67541906]
[1721175871915,2.8863,3464.7,3463.9,3.56229906]
[1721175874019,2.8863,3464.7,3463.9,0.67541906]
[1721175874249,2.8863,3464.7,3463.9,0.04026416]
[1721175875256,2.88642,3464.5,3463.9,0.04026416]
[1721175875465,2.8865,3464.4,3463.9,0.04026416]
[1721175875763,2.88669,3464.2,3464.0,0.04026416]
[1721175875974,2.88675,3464.1,3463.1,2.3351]
[1721175876195,2.88675,3464.1,3462.9,2.88773]
[1721175876196,2.88692,3463.9,3462.9,2.88773]
[1721175876694,2.88692,3463.9,3463.0,2.88765]
[1721175876869,2.88692,3463.9,3463.0,3.700828]
[1721175877309,2.8871,3463.7,3463.0,0.813178]
[1721175877657,2.88692,3463.9,3463.0,0.813178]
[1721175877896,2.3233,3464.0,3463.0,0.813178]
[1721175878097,2.88703,3463.8,3463.0,0.813178]
[1721175878318,2.88703,3463.8,3463.1,0.6588718]
[1721175879926,2.88672,3464.2,3463.1,3.5463718]
[1721175880125,5.23092,3464.4,3463.1,0.6588718]
[1721175880126,2.3444,3464.4,3463.1,0.6588718]
[1721175880331,2.3444,3464.4,3463.4,2.88727]
[1721175880332,2.88659,3464.3,3463.4,2.88727]
[1721175880507,2.3444,3464.4,3463.4,2.88727]
[1721175880508,2.8865,3464.4,3463.6,2.88716]
[1721175881616,3.79060609,3464.9,3463.8,2.88699]
[1721175881617,2.2792,3464.9,3463.8,2.88699]
[1721175881832,2.2792,3464.9,3463.6,2.88716]
[1721175881833,2.8863,3464.7,3463.9,3.464325]
[1721175881984,2.2792,3464.9,3464.0,2.88681]
[1721175881985,2.88618,3464.8,3464.0,2.88681]
[1721175882183,2.88618,3464.8,3464.0,2.92590469]
[1721175882695,2.88618,3464.8,3464.0,3.56211857]
[1721175882904,5.1653,3464.9,3464.1,2.88672]
[1721175883210,2.8861,3464.9,3464.2,0.03906168]
[1721175886007,2.88618,3464.8,3464.2,0.03906168]
[1721175886208,2.88618,3464.8,3464.0,3.52303388]
[1721175886384,2.88618,3464.8,3464.3,0.03899955]
[1721175886589,2.88618,3464.8,3464.0,3.52303388]
[1721175886815,2.88618,3464.8,3464.4,0.03899955]
[1721175887122,2.88618,3464.8,3464.1,2.88673]
[1721175887287,2.88618,3464.8,3464.5,0.03899955]
[1721175887488,2.88618,3464.8,3464.1,2.88673]
[1721175887692,2.88618,3464.8,3464.6,0.03900149]
[1721175887921,2.88618,3464.8,3464.1,2.88673]
[1721175888221,2.88608,3465.0,3464.2,0.577358]
[1721175888423,2.88608,3465.0,3464.2,0.61635949]
[1721175889327,2.88609,3464.9,3464.2,0.61635949]
[1721175889627,2.88619,3464.8,3464.2,0.61635949]
[1721175889832,2.88619,3464.8,3464.2,0.03900149]
[1721175891316,2.88625,3464.7,3463.9,2.88684]
[1721175891523,2.88625,3464.7,3464.3,0.03898402]
[1721175891733,2.88625,3464.7,3463.9,2.88684]
[1721175891943,2.88625,3464.7,3464.4,0.03898402]
[1721175892101,2.88625,3464.7,3463.9,5.7737]
[1721175892292,2.88625,3464.7,3464.5,0.03898402]
[1721175892493,2.88625,3464.7,3464.0,3.69814]